[Event "FRA-ch Open A-D 2018"]
[Site "Nimes"]
[Date "2018.08.19"]
[Round "2"]
[White "Figier, Anthony"]
[Black "Vedovotto, Nicolas"]
[Result "1/2-1/2"]
[ECO "C44"]
[WhiteElo "2082"]
[BlackElo "2186"]
[Annotator "NA"]
[PlyCount "115"]
[EventDate "2018.08.18"]
[EventType "tourn"]
[EventCountry "FRA"]
[SourceTitle "playchess.com"]
[Source "ChessBase"]
[SourceQuality "1"]
[TimeControl "40/5400+30:1800+30"]

1. e4 {[%emt 0:00:06]} Nc6 {[%emt 0:00:14]} 2. d4 {[%emt 0:00:06]} e5 {[%emt 0:00:47]} 3. Nf3 {[%emt 0:00:07]} exd4 {[%emt 0:00:07]} 4. Nxd4 {[%emt 0:00:08]} Nf6 {[%emt 0:00:05]} 5. Nc3 {[%emt 0:00:42]} Bb4 {[%emt 0:00:21]} 6. Nxc6 {[%emt 0:00:06]} bxc6 {[%emt 0:00:06]} 7. Bd3 {[%emt 0:00:05]} O-O {[%emt 0:00:10]} 8. O-O {[%emt 0:00:18]} d5 {[%emt 0:00:21]} 9. exd5 {[%emt 0:00:06]} cxd5 {[%emt 0:00:06]} 10. Bg5 {[%emt 0:05:36]} c6 {[%emt 0:00:34]} 11. Qf3 {[%emt 0:00:25]} h6 {[%emt 0:17:58]} 12. Bxf6 {[%emt 0:06:22]} Qxf6 {[%emt 0:00:11]} 13. Qxf6 {[%emt 0:00:07]} gxf6 {[%emt 0:00:04]} 14. Ne2 {[%emt 0:00:17]} Rb8 {[%emt 0:11:14]} 15. b3 {[%emt 0:06:58]} c5 {[%emt 0:06:19]} 16. c4 {[%emt 0:06:00]} Ba6 {[%emt 0:03:57]} 17. Rac1 {[%emt 0:07:12]} Rfe8 {[%emt 0:06:13]} 18. Ng3 {[%emt 0:12:31]} Rbd8 {[%emt 0:10:31]} 19. Nf5 {[%emt 0:06:16]} Bd2 {[%emt 0:02:32]} 20. Rc2 {[%emt 0:00:29]} dxc4 {[%emt 0:00:27]} 21. Bxc4 {[%emt 0:02:36]} Bc8 {[%emt 0:01:52]} 22. Ng3 {[%emt 0:08:19]} Rd4 {[%emt 0:10:00]} 23. Nh5 {[%emt 0:13:39]} Re5 {[%emt 0:00:26]} 24. Rd1 {[%emt 0:09:25]} Bc3 {[%emt 0:02:43]} 25. Rdc1 {[%emt 0:01:47]} Bb4 {[%emt 0:00:41]} 26. Ng3 {[%emt 0:01:41]} h5 {[%emt 0:02:40]} 27. Bf1 {[%emt 0:05:32]} Be6 {[%emt 0:02:40]} 28. f3 {[%emt 0:01:55]} h4 {[%emt 0:04:39]} 29. Ne4 {[%emt 0:01:08]} Bf5 {[%emt 0:00:24]} 30. Nxf6+ {[%emt 0:00:06]} Kg7 {[%emt 0:00:28]} 31. Ne4 {[%emt 0:00:06]} Bxe4 {[%emt 0:01:08]} 32. fxe4 {[%emt 0:00:01]} Bd2 {[%emt 0:07:54]} 33. Rb1 {[%emt 0:03:03]} Be3+ {[%emt 0:00:16]} 34. Kh1 {[%emt 0:00:05]} Rdxe4 {[%emt 0:01:11]} 35. g3 {[%emt 0:01:40]} hxg3 {[%emt 0:00:25]} 36. hxg3 {[%emt 0:00:08]} Rg5 {[%emt 0:01:36]} 37. Rg2 {[%emt 0:01:35]} Reg4 {[%emt 0:01:54]} 38. Bc4 {[%emt 0:00:55]} f5 {[%emt 0:01:17]} 39. Be2 {[%emt 0:00:32]} Rxg3 {[%emt 0:00:24]} 40. Rxg3 {[%emt 0:00:07]} Rxg3 {[%emt 0:00:07]} 41. Kh2 {[%emt 0:31:42]} Rg6 {[%emt 0:33:23]} 42. Rd1 {[%emt 0:00:00]} Bd4 {[%emt 0:00:00]} 43. b4 {[%emt 0:00:00]} Be5+ {[%emt 0:00:00]} 44. Kh1 {[%emt 0:00:00]} cxb4 {[%emt 0:00:00]} 45. Rd7+ {[%emt 0:00:00]} Kf6 {[%emt 0:00:00]} 46. Rxa7 {[%emt 0:00:00]} Kg5 {[%emt 0:00:00]} 47. Rb7 {[%emt 0:00:00]} Kf4 {[%emt 0:00:00]} 48. Rb5 {[%emt 0:00:00]} Ke4 {[%emt 0:00:00]} 49. Bd1 {[%emt 0:00:00]} Rh6+ {[%emt 0:04:00]} 50. Kg1 {[%emt 0:00:00]} Bd4+ {[%emt 0:00:03]} 51. Kg2 {[%emt 0:00:00]} Ra6 {[%emt 0:00:30]} 52. Bb3 {[%emt 0:00:00]} Bc3 {[%emt 0:00:36]} 53. Kf2 {[%emt 0:00:53]} f4 {[%emt 0:00:11]} 54. Bd5+ {[%emt 0:01:17]} Kd4 {[%emt 0:00:41]} 55. Kf3 {[%emt 0:00:10]} Bd2 {[%emt 0:00:25]} 56. Bb3 {[%emt 0:00:35]} Kc3 {[%emt 0:00:16]} 57. Rc5+ {[%emt 0:00:15]} Kd4 {[%emt 0:00:40]} 58. Rd5+ {[%emt 0:00:22]} 1/2-1/2

[Event "FRA-ch Open A-D 2018"]
[Site "Nimes"]
[Date "2018.08.19"]
[Round "2"]
[White "Lebugle, Philippe"]
[Black "Lancelot, Renaud"]
[Result "1/2-1/2"]
[ECO "C01"]
[WhiteElo "1967"]
[BlackElo "1882"]
[Annotator "NA"]
[PlyCount "133"]
[EventDate "2018.08.18"]
[EventType "tourn"]
[EventCountry "FRA"]
[SourceTitle "playchess.com"]
[Source "ChessBase"]
[SourceQuality "1"]
[TimeControl "40/5400+30:1800+30"]

1. e4 {[%emt 0:00:00]} e6 {[%emt 0:00:30]} 2. d4 {[%emt 0:00:48]} d5 {[%emt 0:01:41]} 3. exd5 {[%emt 0:01:23]} exd5 {[%emt 0:00:13]} 4. Bd3 {[%emt 0:00:06]} Bd6 {[%emt 0:00:54]} 5. Qf3 {[%emt 0:02:11]} Nc6 {[%emt 0:04:41]} 6. c3 {[%emt 0:00:05]} Be6 {[%emt 0:03:30]} 7. Ne2 {[%emt 0:01:21]} Qd7 {[%emt 0:06:38]} 8. h3 {[%emt 0:02:23]} Nge7 {[%emt 0:03:42]} 9. Bf4 {[%emt 0:01:42]} O-O-O {[%emt 0:05:23]} 10. Bxd6 {[%emt 0:03:16]} Qxd6 {[%emt 0:00:23]} 11. Nd2 {[%emt 0:00:10]} f6 {[%emt 0:04:28]} 12. O-O-O {[%emt 0:02:54]} Bf7 {[%emt 0:04:04]} 13. Nf4 {[%emt 0:08:00]} Kb8 {[%emt 0:06:16]} 14. Nf1 {[%emt 0:10:36]} Ng6 {[%emt 0:05:24]} 15. Nxg6 {[%emt 0:06:06]} hxg6 {[%emt 0:01:15]} 16. Ne3 {[%emt 0:04:42]} Ne7 {[%emt 0:06:47]} 17. h4 {[%emt 0:09:56]} Rh6 {[%emt 0:03:02]} 18. g3 {[%emt 0:01:59]} Rdh8 {[%emt 0:01:04]} 19. Rhe1 {[%emt 0:00:09]} Rh5 {[%emt 0:04:39]} 20. Ng2 {[%emt 0:01:49]} Rd8 {[%emt 0:09:23]} 21. Rd2 {[%emt 0:03:32]} Rhh8 {[%emt 0:02:48]} 22. Rde2 {[%emt 0:00:20]} Rhe8 {[%emt 0:01:29]} 23. Nf4 {[%emt 0:02:45]} Nf5 {[%emt 0:05:04]} 24. Rxe8 {[%emt 0:02:56]} Bxe8 {[%emt 0:00:38]} 25. Ne6 {[%emt 0:01:44]} Qe7 {[%emt 0:02:18]} 26. Re2 {[%emt 0:00:37]} Rc8 {[%emt 0:03:10]} 27. Bxf5 {[%emt 0:15:59]} gxf5 {[%emt 0:00:04]} 28. Qxf5 {[%emt 0:00:07]} Bf7 {[%emt 0:06:29]} 29. Nf4 {[%emt 0:00:25]} Qd6 {[%emt 0:01:05]} 30. Qg4 {[%emt 0:02:41]} g6 {[%emt 0:02:39]} 31. Qf3 {[%emt 0:02:54]} g5 {[%emt 0:01:01]} 32. hxg5 {[%emt 0:00:10]} fxg5 {[%emt 0:00:07]} 33. Nh3 {[%emt 0:01:26]} Qg6 {[%emt 0:03:03]} 34. Qg4 {[%emt 0:00:06]} Rh8 {[%emt 0:00:50]} 35. f4 {[%emt 0:04:50]} Qd3 {[%emt 0:01:25]} 36. Nf2 {[%emt 0:02:23]} Qc4 {[%emt 0:00:49]} 37. a3 {[%emt 0:01:17]} a6 {[%emt 0:00:13]} 38. Re1 {[%emt 0:01:37]} gxf4 {[%emt 0:00:23]} 39. Qxf4 {[%emt 0:01:08]} Bg6 {[%emt 0:00:45]} 40. Qf6 {[%emt 0:00:45]} Rg8 {[%emt 0:00:39]} 41. Qf3 {[%emt 0:31:31]} Qa2 {[%emt 0:30:31]} 42. Nd3 {[%emt 0:01:18]} Be4 {[%emt 0:00:31]} 43. Qf7 {[%emt 0:00:36]} Rxg3 {[%emt 0:00:51]} 44. Qe8+ {[%emt 0:00:09]} Ka7 {[%emt 0:00:09]} 45. Rxe4 {[%emt 0:00:21]} dxe4 {[%emt 0:00:17]} 46. Qxe4 {[%emt 0:00:46]} Qa1+ {[%emt 0:00:27]} 47. Kc2 {[%emt 0:00:20]} Rg1 {[%emt 0:00:15]} 48. Kb3 {[%emt 0:00:43]} Qd1+ {[%emt 0:00:23]} 49. Kb4 {[%emt 0:00:35]} Qg4 {[%emt 0:01:28]} 50. Qe5 {[%emt 0:00:18]} Qd7 {[%emt 0:00:35]} 51. a4 {[%emt 0:00:33]} Qd6+ {[%emt 0:00:32]} 52. Qxd6 {[%emt 0:00:25]} cxd6 {[%emt 0:00:06]} 53. Kc4 {[%emt 0:00:17]} Rg5 {[%emt 0:00:27]} 54. b4 {[%emt 0:00:40]} Kb6 {[%emt 0:00:23]} 55. Nf4 {[%emt 0:00:18]} Kc6 {[%emt 0:00:49]} 56. d5+ {[%emt 0:00:29]} Kd7 {[%emt 0:00:26]} 57. Ne6 {[%emt 0:00:08]} Rg4+ {[%emt 0:00:29]} 58. Nd4 {[%emt 0:00:08]} Rh4 {[%emt 0:00:26]} 59. a5 {[%emt 0:00:19]} Ke7 {[%emt 0:00:44]} 60. Kb3 {[%emt 0:00:11]} Kf6 {[%emt 0:00:16]} 61. b5 {[%emt 0:00:11]} axb5 {[%emt 0:00:48]} 62. Nxb5 {[%emt 0:00:11]} Ke5 {[%emt 0:00:13]} 63. c4 {[%emt 0:00:07]} Rh1 {[%emt 0:00:47]} 64. Kc3 {[%emt 0:01:12]} Ra1 {[%emt 0:00:32]} 65. Kb4 {[%emt 0:00:07]} Rb1+ {[%emt 0:00:16]} 66. Ka4 {[%emt 0:00:31]} Ra1+ {[%emt 0:00:28]} 67. Kb4 1/2-1/2

[Event "FRA-ch Open A-D 2018"]
[Site "Nimes"]
[Date "2018.08.19"]
[Round "2"]
[White "Boes, Remi"]
[Black "Canonge, Jerome"]
[Result "1-0"]
[ECO "D02"]
[WhiteElo "1946"]
[BlackElo "1873"]
[Annotator "NA"]
[PlyCount "57"]
[EventDate "2018.08.18"]
[EventType "tourn"]
[EventCountry "FRA"]
[SourceTitle "playchess.com"]
[Source "ChessBase"]
[SourceQuality "1"]
[TimeControl "40/5400+30:1800+30"]

1. d4 {[%emt 0:00:00]} d5 {[%emt 0:00:00]} 2. Nf3 {[%emt 0:00:00]} Nc6 {[%emt 0:00:26]} 3. c4 {[%emt 0:01:04]} Bg4 {[%emt 0:05:04]} 4. Nc3 {[%emt 0:00:42]} Bxf3 {[%emt 0:01:33]} 5. gxf3 {[%emt 0:01:12]} e5 {[%emt 0:02:26]} 6. cxd5 {[%emt 0:01:33]} exd4 {[%emt 0:06:32]} 7. dxc6 {[%emt 0:01:09]} dxc3 {[%emt 0:00:33]} 8. Qb3 {[%emt 0:00:48]} bxc6 {[%emt 0:15:27]} 9. Qxc3 {[%emt 0:02:55]} Qf6 {[%emt 0:01:12]} 10. Qxf6 {[%emt 0:28:45]} Nxf6 {[%emt 0:01:49]} 11. e4 {[%emt 0:02:52]} Bb4+ {[%emt 0:01:20]} 12. Ke2 {[%emt 0:00:31]} O-O {[%emt 0:02:43]} 13. Rg1 {[%emt 0:07:36]} Rfe8 {[%emt 0:02:13]} 14. Be3 {[%emt 0:03:16]} Rad8 {[%emt 0:05:24]} 15. Rc1 {[%emt 0:01:03]} Rd6 {[%emt 0:02:33]} 16. Bh3 {[%emt 0:02:49]} Nh5 {[%emt 0:14:34]} 17. a3 {[%emt 0:12:38]} Ba5 {[%emt 0:10:33]} 18. Rc5 {[%emt 0:05:38]} Bb6 {[%emt 0:00:50]} 19. Rxh5 {[%emt 0:02:53]} Bxe3 {[%emt 0:00:54]} 20. Kxe3 {[%emt 0:01:03]} Red8 {[%emt 0:00:28]} 21. Bf1 {[%emt 0:05:35]} Rd2 {[%emt 0:01:23]} 22. b3 {[%emt 0:01:19]} Rd1 {[%emt 0:02:00]} 23. Rhg5 {[%emt 0:00:22]} g6 {[%emt 0:01:47]} 24. Bc4 {[%emt 0:00:51]} R1d2 {[%emt 0:01:11]} 25. h4 {[%emt 0:00:54]} Kg7 {[%emt 0:01:10]} 26. Rc5 {[%emt 0:02:33]} Rc2 {[%emt 0:01:07]} 27. Rxc6 {[%emt 0:02:19]} Rc3+ {[%emt 0:00:27]} 28. Kf4 {[%emt 0:01:10]} Rd2 {[%emt 0:00:56]} 29. Rg2 {[%emt 0:02:15]} 1-0

[Event "FRA-ch Open A-D 2018"]
[Site "Nimes"]
[Date "2018.08.19"]
[Round "2"]
[White "Grandmougin, Olivier"]
[Black "Vincensini, Emmanuel"]
[Result "1/2-1/2"]
[ECO "B12"]
[WhiteElo "1941"]
[BlackElo "1866"]
[Annotator "NA"]
[PlyCount "89"]
[EventDate "2018.08.18"]
[EventType "tourn"]
[EventCountry "FRA"]
[SourceTitle "playchess.com"]
[Source "ChessBase"]
[SourceQuality "1"]
[TimeControl "40/5400+30:1800+30"]

1. e4 {[%emt 0:01:19]} c6 {[%emt 0:00:00]} 2. d4 {[%emt 0:00:03]} d5 {[%emt 0:00:00]} 3. f3 {[%emt 0:00:02]} e5 {[%emt 0:01:00]} 4. dxe5 {[%emt 0:00:35]} Bc5 {[%emt 0:01:56]} 5. Bf4 {[%emt 0:08:19]} Qb6 {[%emt 0:01:41]} 6. Ne2 {[%emt 0:00:42]} Bf2+ {[%emt 0:03:59]} 7. Kd2 {[%emt 0:00:07]} Ne7 {[%emt 0:15:37]} 8. Kc3 {[%emt 0:00:32]} Na6 {[%emt 0:10:21]} 9. b3 {[%emt 0:02:16]} dxe4 {[%emt 0:07:37]} 10. Nd2 {[%emt 0:05:42]} Be6 {[%emt 0:30:32]} 11. Nxe4 {[%emt 0:05:53]} O-O {[%emt 0:02:03]} 12. Nxf2 {[%emt 0:01:14]} Qxf2 {[%emt 0:00:10]} 13. Bg3 {[%emt 0:00:12]} Qb6 {[%emt 0:00:18]} 14. Qd4 {[%emt 0:00:17]} c5 {[%emt 0:00:02]} 15. Qd6 {[%emt 0:00:39]} Nd5+ {[%emt 0:00:14]} 16. Kb2 {[%emt 0:00:04]} Qa5 {[%emt 0:00:11]} 17. Be1 {[%emt 0:00:57]} Qc7 {[%emt 0:03:02]} 18. Qxc7 {[%emt 0:06:33]} Naxc7 {[%emt 0:00:14]} 19. Bf2 {[%emt 0:01:03]} b6 {[%emt 0:01:40]} 20. Nc3 {[%emt 0:00:45]} Nxc3 {[%emt 0:00:09]} 21. Kxc3 {[%emt 0:00:03]} Rfd8 {[%emt 0:00:52]} 22. Bd3 {[%emt 0:00:25]} Nd5+ {[%emt 0:03:36]} 23. Kb2 {[%emt 0:07:57]} Nb4 {[%emt 0:00:24]} 24. Rad1 {[%emt 0:02:57]} Nxd3+ {[%emt 0:00:24]} 25. Rxd3 {[%emt 0:00:30]} c4 {[%emt 0:00:27]} 26. Rd6 {[%emt 0:00:13]} Rxd6 {[%emt 0:01:30]} 27. exd6 {[%emt 0:00:10]} Rd8 {[%emt 0:00:08]} 28. Rd1 {[%emt 0:01:19]} Kf8 {[%emt 0:01:15]} 29. Kc3 {[%emt 0:00:57]} Ke8 {[%emt 0:00:24]} 30. b4 {[%emt 0:03:57]} b5 {[%emt 0:02:45]} 31. Bg3 {[%emt 0:01:02]} Ra8 {[%emt 0:00:51]} 32. Kd4 {[%emt 0:01:03]} Rc8 {[%emt 0:00:59]} 33. c3 {[%emt 0:00:25]} Kd7 {[%emt 0:00:05]} 34. a4 {[%emt 0:00:19]} bxa4 {[%emt 0:00:32]} 35. Ra1 {[%emt 0:00:09]} a6 {[%emt 0:00:16]} 36. Rxa4 {[%emt 0:00:13]} Rc6 {[%emt 0:00:01]} 37. Ra5 {[%emt 0:01:12]} Rb6 {[%emt 0:03:44]} 38. Rg5 {[%emt 0:04:07]} g6 {[%emt 0:00:21]} 39. Rc5 {[%emt 0:01:03]} Rc6 {[%emt 0:02:02]} 40. Be5 {[%emt 0:01:24]} h5 {[%emt 0:00:25]} 41. h4 {[%emt 0:30:54]} f5 {[%emt 0:25:16]} 42. Bf4 {[%emt 0:00:00]} Bf7 {[%emt 0:00:33]} 43. Ke5 {[%emt 0:00:00]} Rxd6 {[%emt 0:01:15]} 44. Ra5 {[%emt 0:00:00]} Rc6 {[%emt 0:00:40]} 45. Kd4 1/2-1/2

[Event "FRA-ch Open A-D 2018"]
[Site "Nimes"]
[Date "2018.08.19"]
[Round "2"]
[White "Candelot, Clement"]
[Black "Mahieu, Luc"]
[Result "1-0"]
[ECO "B51"]
[WhiteElo "1883"]
[BlackElo "1948"]
[Annotator "NA"]
[PlyCount "108"]
[EventDate "2018.08.18"]
[EventType "tourn"]
[EventCountry "FRA"]
[SourceTitle "playchess.com"]
[Source "ChessBase"]
[SourceQuality "1"]
[TimeControl "40/5400+30:1800+30"]

1. e4 {[%emt 0:00:00]} c5 {[%emt 0:00:00]} 2. Nf3 {[%emt 0:00:00]} d6 {[%emt 0:00:00]} 3. Bb5+ {[%emt 0:00:24]} Nd7 {[%emt 0:00:00]} 4. c3 {[%emt 0:01:11]} Ngf6 {[%emt 0:00:12]} 5. Qe2 {[%emt 0:00:58]} a6 {[%emt 0:00:09]} 6. Ba4 {[%emt 0:00:30]} b5 {[%emt 0:00:08]} 7. Bc2 {[%emt 0:00:04]} Bb7 {[%emt 0:00:06]} 8. O-O {[%emt 0:00:38]} e5 {[%emt 0:00:10]} 9. d4 {[%emt 0:02:03]} Be7 {[%emt 0:00:11]} 10. Rd1 {[%emt 0:02:10]} Qc7 {[%emt 0:00:12]} 11. Bd3 {[%emt 0:06:36]} O-O {[%emt 0:05:39]} 12. Bg5 {[%emt 0:08:09]} h6 {[%emt 0:11:26]} 13. Bh4 Kh7 {[%emt 0:01:41]} 14. Nbd2 {[%emt 0:05:32]} Rg8 {[%emt 0:01:57]} 15. Bg3 {[%emt 0:15:41]} g5 {[%emt 0:05:04]} 16. h3 {[%emt 0:09:02]} Nh5 {[%emt 0:13:54]} 17. Nf1 {[%emt 0:12:51]} Nf4 {[%emt 0:01:32]} 18. Qd2 {[%emt 0:01:16]} Rad8 {[%emt 0:10:18]} 19. Ne3 {[%emt 0:05:19]} Nb6 {[%emt 0:10:10]} 20. Rac1 {[%emt 0:06:09]} Bc8 {[%emt 0:04:27]} 21. Bb1 {[%emt 0:03:01]} Kh8 {[%emt 0:03:22]} 22. Kh2 {[%emt 0:04:06]} h5 {[%emt 0:03:14]} 23. Bxf4 {[%emt 0:04:14]} gxf4 {[%emt 0:00:18]} 24. Nf5 {[%emt 0:01:05]} Bxf5 {[%emt 0:01:03]} 25. exf5 {[%emt 0:00:12]} Bf6 {[%emt 0:05:28]} 26. Qe2 {[%emt 0:01:55]} Rde8 {[%emt 0:05:12]} 27. dxe5 {[%emt 0:02:26]} dxe5 {[%emt 0:00:24]} 28. Be4 {[%emt 0:02:30]} Rg7 {[%emt 0:04:45]} 29. Nd2 {[%emt 0:01:46]} Rg5 {[%emt 0:00:44]} 30. Nf3 {[%emt 0:00:58]} Rg7 {[%emt 0:01:22]} 31. Nd2 {[%emt 0:00:13]} h4 {[%emt 0:00:57]} 32. Bf3 {[%emt 0:00:21]} e4 {[%emt 0:04:10]} 33. Nxe4 {[%emt 0:01:18]} Nc4 {[%emt 0:01:00]} 34. Qc2 {[%emt 0:02:01]} Qe7 {[%emt 0:02:39]} 35. Rd7 {[%emt 0:02:01]} Qxd7 36. Nxf6 {[%emt 0:00:06]} Qe7 {[%emt 0:02:01]} 37. Nxe8 {[%emt 0:00:09]} Qxe8 {[%emt 0:00:05]} 38. Kh1 {[%emt 0:01:19]} Ne5 {[%emt 0:01:43]} 39. Qe4 {[%emt 0:00:37]} f6 {[%emt 0:00:11]} 40. Qxf4 {[%emt 0:00:00]} Kg8 {[%emt 0:00:00]} 41. Bd5+ {[%emt 0:03:38]} Nf7 {[%emt 0:09:06]} 42. Be6 {[%emt 0:00:47]} Qc6 {[%emt 0:03:27]} 43. f3 {[%emt 0:00:36]} Qb6 {[%emt 0:02:28]} 44. Qxh4 {[%emt 0:02:05]} Qd8 {[%emt 0:00:33]} 45. Qf4 {[%emt 0:00:30]} Qd3 46. b4 {[%emt 0:05:40]} Qe2 {[%emt 0:01:11]} 47. Rg1 {[%emt 0:01:12]} c4 {[%emt 0:02:55]} 48. a4 {[%emt 0:02:27]} Kh7 {[%emt 0:00:32]} 49. Qh4+ {[%emt 0:00:30]} Nh6 {[%emt 0:00:30]} 50. axb5 {[%emt 0:00:21]} axb5 {[%emt 0:00:20]} 51. Qxf6 Qd3 {[%emt 0:01:22]} 52. Qe5 {[%emt 0:01:58]} Nf7 {[%emt 0:03:00]} 53. Bxf7 {[%emt 0:00:09]} Rxf7 {[%emt 0:00:05]} 54. f6 {[%emt 0:01:00]} Qg6 {[%emt 0:00:43]} 1-0

[Event "FRA-ch Open A-D 2018"]
[Site "Nimes"]
[Date "2018.08.19"]
[Round "2"]
[White "Perrin, Yves"]
[Black "Herbin, Alexandre"]
[Result "0-1"]
[ECO "B21"]
[WhiteElo "1755"]
[BlackElo "1644"]
[Annotator "NA"]
[PlyCount "66"]
[EventDate "2018.08.18"]
[EventType "tourn"]
[EventCountry "FRA"]
[SourceTitle "playchess.com"]
[Source "ChessBase"]
[SourceQuality "1"]
[TimeControl "40/5400+30:1800+30"]

1. e4 {[%emt 0:00:00]} c5 {[%emt 0:00:08]} 2. d4 {[%emt 0:00:43]} cxd4 {[%emt 0:01:42]} 3. c3 {[%emt 0:00:16]} Nf6 {[%emt 0:01:39]} 4. e5 {[%emt 0:06:52]} Nd5 {[%emt 0:02:25]} 5. Nf3 {[%emt 0:07:14]} Nc6 {[%emt 0:05:11]} 6. Bc4 {[%emt 0:05:35]} Nb6 {[%emt 0:01:35]} 7. Bb3 {[%emt 0:00:19]} d5 {[%emt 0:07:42]} 8. cxd4 {[%emt 0:10:52]} Bg4 {[%emt 0:01:12]} 9. Be3 {[%emt 0:03:24]} e6 {[%emt 0:04:01]} 10. Qe2 {[%emt 0:06:52]} Be7 {[%emt 0:06:24]} 11. h3 {[%emt 0:00:51]} Bh5 {[%emt 0:03:45]} 12. a3 {[%emt 0:05:26]} O-O {[%emt 0:02:31]} 13. Nc3 {[%emt 0:05:13]} Na5 {[%emt 0:06:27]} 14. Bc2 {[%emt 0:04:41]} Nac4 {[%emt 0:03:26]} 15. Bd3 {[%emt 0:03:21]} Rc8 {[%emt 0:06:41]} 16. Nd1 {[%emt 0:09:42]} a6 {[%emt 0:11:20]} 17. g4 {[%emt 0:02:11]} Bg6 {[%emt 0:01:38]} 18. h4 {[%emt 0:00:17]} Bxd3 {[%emt 0:00:56]} 19. Qxd3 {[%emt 0:00:07]} Na4 {[%emt 0:03:23]} 20. Rb1 {[%emt 0:02:49]} Qa5+ {[%emt 0:02:50]} 21. b4 {[%emt 0:00:22]} Qd8 {[%emt 0:01:41]} 22. Ng5 {[%emt 0:00:38]} g6 {[%emt 0:01:08]} 23. Nf3 {[%emt 0:00:07]} Nxe3 {[%emt 0:00:36]} 24. fxe3 {[%emt 0:00:17]} h6 {[%emt 0:01:37]} 25. g5 {[%emt 0:07:04]} h5 {[%emt 0:00:43]} 26. Kf2 {[%emt 0:00:06]} Rc7 {[%emt 0:00:56]} 27. Kg3 {[%emt 0:00:11]} Qc8 {[%emt 0:00:23]} 28. Kf4 {[%emt 0:05:21]} Nc3 {[%emt 0:01:00]} 29. Rb3 {[%emt 0:00:12]} Ne4 {[%emt 0:01:47]} 30. Nd2 {[%emt 0:01:06]} f6 {[%emt 0:04:11]} 31. gxf6 {[%emt 0:06:42]} Bxf6 {[%emt 0:00:25]} 32. Nxe4 {[%emt 0:00:30]} Bxe5+ {[%emt 0:00:27]} 33. Kg5 {[%emt 0:03:03]} Rf5+ {[%emt 0:00:07]} 0-1

[Event "FRA-ch Open A-D 2018"]
[Site "Nimes"]
[Date "2018.08.19"]
[Round "2"]
[White "Jangwa, Valentin"]
[Black "Christophe-Hayot, Romain"]
[Result "1-0"]
[ECO "A43"]
[WhiteElo "1648"]
[BlackElo "1797"]
[Annotator "NA"]
[PlyCount "68"]
[EventDate "2018.08.18"]
[EventType "tourn"]
[EventCountry "FRA"]
[SourceTitle "playchess.com"]
[Source "ChessBase"]
[SourceQuality "1"]
[TimeControl "40/5400+30:1800+30"]

1. d4 {[%emt 0:00:05]} c5 {[%emt 0:03:32]} 2. d5 {[%emt 0:02:45]} Nf6 {[%emt 0:01:27]} 3. Nf3 {[%emt 0:01:01]} b6 {[%emt 0:02:38]} 4. c4 {[%emt 0:03:14]} g6 {[%emt 0:01:50]} 5. Nc3 {[%emt 0:00:23]} d6 {[%emt 0:00:54]} 6. h3 {[%emt 0:00:21]} Bg7 {[%emt 0:00:58]} 7. Bg5 {[%emt 0:00:28]} Nbd7 {[%emt 0:00:51]} 8. Qd2 {[%emt 0:02:59]} h6 {[%emt 0:00:18]} 9. Bf4 {[%emt 0:00:47]} Nh5 {[%emt 0:01:19]} 10. Bh2 {[%emt 0:00:47]} O-O {[%emt 0:03:36]} 11. g4 {[%emt 0:06:44]} Nhf6 {[%emt 0:01:18]} 12. g5 {[%emt 0:05:08]} hxg5 {[%emt 0:00:07]} 13. Nxg5 {[%emt 0:00:42]} Ne5 {[%emt 0:05:24]} 14. Bxe5 {[%emt 0:04:41]} dxe5 {[%emt 0:01:44]} 15. Nge4 {[%emt 0:03:50]} Nxe4 {[%emt 0:00:21]} 16. Nxe4 {[%emt 0:00:07]} f5 {[%emt 0:00:38]} 17. Nc3 {[%emt 0:02:06]} Kh7 {[%emt 0:00:40]} 18. h4 {[%emt 0:00:45]} Bh6 {[%emt 0:00:21]} 19. e3 {[%emt 0:01:48]} f4 {[%emt 0:01:23]} 20. Ne4 {[%emt 0:00:53]} fxe3 {[%emt 0:00:29]} 21. Ng5+ {[%emt 0:00:44]} Kg8 {[%emt 0:00:29]} 22. Qxe3 {[%emt 0:02:15]} Qd6 {[%emt 0:00:21]} 23. Bd3 {[%emt 0:07:28]} Bg4 {[%emt 0:00:34]} 24. Be2 {[%emt 0:01:44]} Bh5 {[%emt 0:00:26]} 25. Bxh5 {[%emt 0:01:06]} gxh5 {[%emt 0:01:04]} 26. Rg1 {[%emt 0:00:13]} Kh8 {[%emt 0:02:22]} 27. Qe4 {[%emt 0:03:42]} Bxg5 {[%emt 0:00:31]} 28. Rxg5 {[%emt 0:00:14]} Rf6 {[%emt 0:04:41]} 29. O-O-O {[%emt 0:05:50]} Raf8 {[%emt 0:00:14]} 30. Rdg1 {[%emt 0:00:53]} Rh6 {[%emt 0:03:27]} 31. Qg2 {[%emt 0:05:08]} Qf6 {[%emt 0:16:23]} 32. Rg8+ {[%emt 0:00:58]} Kh7 {[%emt 0:01:02]} 33. Qe4+ {[%emt 0:08:24]} Rg6 {[%emt 0:00:15]} 34. Rxf8 {[%emt 0:05:28]} Kg7 {[%emt 0:02:27]} 1-0